[Event "Moscow Rapid-ch 2018"]
[Site "Moscow"]
[Date "2018.12.09"]
[Round "11"]
[White "Martynyuk, Elizaveta"]
[Black "Gvanceladze, Anna"]
[Result "1/2-1/2"]
[ECO "B10"]
[WhiteElo "2128"]
[BlackElo "2264"]
[Annotator "NA"]
[PlyCount "154"]
[EventDate "2018.12.08"]
[EventType "swiss"]
[EventCountry "RUS"]
[SourceTitle "playchess.com"]
[Source "ChessBase"]
[SourceQuality "1"]
[TimeControl "900+10"]

1. e4 {[%emt 0:02:27]} c6 {[%emt 0:00:00]} 2. Nc3 {[%emt 0:00:04]} d5 {[%emt 0:00:00]} 3. Nf3 {[%emt 0:00:02]} dxe4 {[%emt 0:00:00]} 4. Nxe4 {[%emt 0:00:02]} Nf6 {[%emt 0:00:00]} 5. Nxf6+ {[%emt 0:00:13]} exf6 {[%emt 0:00:00]} 6. h3 {[%emt 0:00:07]} Bd6 {[%emt 0:00:09]} 7. d4 {[%emt 0:00:04]} O-O {[%emt 0:00:13]} 8. Be3 {[%emt 0:00:05]} Re8 {[%emt 0:00:08]} 9. Be2 {[%emt 0:00:10]} Nd7 {[%emt 0:00:28]} 10. O-O {[%emt 0:00:03]} Nf8 {[%emt 0:00:07]} 11. c4 {[%emt 0:00:17]} Ng6 {[%emt 0:00:12]} 12. Qc2 {[%emt 0:00:10]} Bf4 {[%emt 0:01:02]} 13. Bxf4 {[%emt 0:00:13]} Nxf4 {[%emt 0:00:02]} 14. Rfe1 {[%emt 0:00:06]} Nxe2+ {[%emt 0:00:16]} 15. Rxe2 {[%emt 0:00:02]} Be6 {[%emt 0:00:51]} 16. Rd1 {[%emt 0:00:20]} Qd7 {[%emt 0:00:13]} 17. Red2 {[%emt 0:00:46]} Bf5 {[%emt 0:00:46]} 18. Qb3 {[%emt 0:00:14]} b5 {[%emt 0:02:17]} 19. cxb5 {[%emt 0:00:24]} cxb5 {[%emt 0:00:02]} 20. d5 {[%emt 0:00:08]} a6 {[%emt 0:00:49]} 21. Qa3 {[%emt 0:00:52]} h5 {[%emt 0:01:43]} 22. b4 {[%emt 0:00:22]} Qd6 {[%emt 0:00:23]} 23. Qb3 {[%emt 0:00:14]} Rad8 {[%emt 0:00:14]} 24. a4 {[%emt 0:00:23]} bxa4 {[%emt 0:00:47]} 25. Qxa4 {[%emt 0:00:03]} Bd7 {[%emt 0:00:03]} 26. Qa5 {[%emt 0:00:23]} Bb5 {[%emt 0:00:35]} 27. Nd4 {[%emt 0:00:32]} Rb8 {[%emt 0:00:02]} 28. Nf5 {[%emt 0:00:32]} Qd7 {[%emt 0:01:09]} 29. Ng3 {[%emt 0:00:29]} h4 {[%emt 0:00:41]} 30. Nf1 {[%emt 0:00:04]} Qd6 {[%emt 0:01:27]} 31. Ne3 {[%emt 0:00:06]} g6 {[%emt 0:00:01]} 32. Rd4 {[%emt 0:00:14]} g5 {[%emt 0:00:30]} 33. Qa3 {[%emt 0:00:56]} Re5 {[%emt 0:00:18]} 34. Ng4 {[%emt 0:00:19]} Ree8 {[%emt 0:01:16]} 35. Nh6+ {[%emt 0:00:35]} Kf8 {[%emt 0:00:08]} 36. Qc3 {[%emt 0:00:53]} Bd7 {[%emt 0:00:08]} 37. Rc4 {[%emt 0:00:48]} Rb5 {[%emt 0:00:23]} 38. Rc5 {[%emt 0:00:17]} Kg7 {[%emt 0:01:04]} 39. Ng4 {[%emt 0:00:48]} Reb8 {[%emt 0:00:37]} 40. Rd4 {[%emt 0:00:40]} Bxg4 {[%emt 0:01:18]} 41. hxg4 {[%emt 0:00:18]} R5b6 {[%emt 0:00:54]} 42. Rc6 {[%emt 0:01:56]} Qe5 {[%emt 0:00:01]} 43. Rxb6 {[%emt 0:00:30]} Rxb6 {[%emt 0:00:01]} 44. Qd3 {[%emt 0:00:19]} Rd6 {[%emt 0:00:10]} 45. Kf1 {[%emt 0:00:22]} Qe8 {[%emt 0:00:08]} 46. Qc4 {[%emt 0:00:26]} Qa4 {[%emt 0:00:24]} 47. Kg1 {[%emt 0:00:12]} Qb5 {[%emt 0:00:10]} 48. Qc5 {[%emt 0:00:13]} Qd7 {[%emt 0:00:08]} 49. Rd3 {[%emt 0:00:53]} Qd8 {[%emt 0:00:18]} 50. Qd4 {[%emt 0:00:08]} Qb8 {[%emt 0:00:11]} 51. Rd2 {[%emt 0:00:40]} Qd8 {[%emt 0:00:18]} 52. Rd1 {[%emt 0:00:10]} Qd7 {[%emt 0:00:01]} 53. Rd3 {[%emt 0:00:07]} Qb5 {[%emt 0:00:02]} 54. Kh1 {[%emt 0:00:25]} Qb8 {[%emt 0:00:06]} 55. f4 {[%emt 0:00:31]} Qb6 {[%emt 0:00:30]} 56. Qe4 {[%emt 0:00:19]} Qf2 {[%emt 0:00:08]} 57. fxg5 {[%emt 0:00:29]} fxg5 {[%emt 0:00:08]} 58. Rf3 {[%emt 0:00:06]} Qb2 {[%emt 0:00:02]} 59. Rf5 {[%emt 0:00:13]} Rg6 {[%emt 0:00:25]} 60. Qe7 {[%emt 0:00:14]} Qa1+ {[%emt 0:00:11]} 61. Kh2 {[%emt 0:00:03]} Rf6 {[%emt 0:00:12]} 62. Rxg5+ {[%emt 0:00:03]} Kh6 {[%emt 0:00:03]} 63. Rh5+ {[%emt 0:00:13]} Kg6 {[%emt 0:00:01]} 64. Qe3 {[%emt 0:00:21]} Kg7 {[%emt 0:00:18]} 65. Qg5+ {[%emt 0:00:05]} Rg6 {[%emt 0:00:01]} 66. Qxh4 {[%emt 0:00:03]} Qd4 {[%emt 0:00:12]} 67. Qd8 {[%emt 0:00:55]} Qf4+ {[%emt 0:00:02]} 68. Kh1 {[%emt 0:00:13]} Qf1+ {[%emt 0:00:09]} 69. Kh2 {[%emt 0:00:02]} Qf4+ {[%emt 0:00:01]} 70. Kh1 {[%emt 0:00:08]} Qf1+ {[%emt 0:00:01]} 71. Kh2 {[%emt 0:00:01]} Qf4+ {[%emt 0:00:02]} 72. Kh1 {[%emt 0:00:03]} Qf1+ {[%emt 0:00:01]} 73. Kh2 {[%emt 0:00:02]} Qf4+ {[%emt 0:00:24]} 74. Kg1 {[%emt 0:00:04]} Qe3+ {[%emt 0:00:10]} 75. Kh1 {[%emt 0:00:15]} Qc1+ {[%emt 0:00:02]} 76. Kh2 {[%emt 0:00:01]} Qf4+ {[%emt 0:00:02]} 77. Kh1 {[%emt 0:00:02]} Qf1+ {[%emt 0:00:01]} 1/2-1/2

[Event "Moscow Rapid-ch 2018"]
[Site "Moscow"]
[Date "2018.12.09"]
[Round "11"]
[White "Parpiev, Isaak"]
[Black "Vlasov, Sergey"]
[Result "0-1"]
[ECO "C47"]
[WhiteElo "1406"]
[BlackElo "2229"]
[Annotator "NA"]
[PlyCount "58"]
[EventDate "2018.12.08"]
[EventType "swiss"]
[EventCountry "RUS"]
[SourceTitle "playchess.com"]
[Source "ChessBase"]
[SourceQuality "1"]
[TimeControl "900+10"]

1. e4 e5 2. Nf3 Nc6 3. Nc3 Nf6 4. Bc4 Bb4 5. d3 h6 6. O-O d6 7. h3 O-O 8. a3 Ba5 9. b4 Bb6 10. Na4 Ne7 11. Nxb6 axb6 12. Bb2 Ng6 13. d4 Qe7 14. Re1 Nh5 15. dxe5 dxe5 16. Qd2 Nhf4 17. Qc3 Re8 18. Rad1 Qf6 19. Rd2 Be6 20. Bxe6 Rxe6 21. Red1 b5 22. Qb3 Rae8 23. Rd7 Rc6 24. R7d2 Rc4 25. Qe3 Qc6 26. Nxe5 Rxe5 27. Bxe5 Rxe4 28. Rd8+ Kh7 29. Qb3 Re1+ 0-1